[Event "72nd RUS-ch Higher League 2019"]
[Site "Yaroslavl"]
[Date "2019.07.03"]
[Round "6.7"]
[White "Paravyan, David"]
[Black "Alekseenko, Kirill"]
[Result "0-1"]
[ECO "E32"]
[WhiteElo "2605"]
[BlackElo "2650"]
[Annotator "ChessBase"]
[PlyCount "110"]
[EventDate "2019.06.27"]
[EventType "swiss"]
[EventCountry "RUS"]
[SourceTitle "playchess.com"]
[Source "ChessBase"]
[SourceQuality "1"]
[TimeControl "40/5400+30:1800+30"]

1. d4 {[%emt 0:00:00]} Nf6 {[%emt 0:00:00]} 2. c4 {[%emt 0:00:00]} e6 {[%emt 0:00:21]} 3. Nc3 {[%emt 0:00:00]} Bb4 {[%emt 0:00:47]} 4. Qc2 {[%emt 0:00:00]} O-O {[%emt 0:02:14]} 5. Nf3 {[%emt 0:00:00]} d6 {[%emt 0:11:14]} 6. Bd2 {[%emt 0:00:43]} Qe7 {[%emt 0:03:36]} 7. a3 {[%emt 0:00:37]} Bxc3 {[%emt 0:00:35]} 8. Bxc3 {[%emt 0:00:07]} Nbd7 {[%emt 0:01:31]} 9. e4 {[%emt 0:12:56]} e5 {[%emt 0:01:03]} 10. d5 {[%emt 0:01:07]} Nc5 {[%emt 0:01:59]} 11. Nd2 {[%emt 0:00:12]} Bd7 {[%emt 0:01:04]} 12. Be2 {[%emt 0:05:54]} Na4 {[%emt 0:05:50]} 13. O-O {[%emt 0:00:38]} c5 {[%emt 0:01:56]} 14. b3 {[%emt 0:09:25]} Nxc3 {[%emt 0:07:50]} 15. Qxc3 {[%emt 0:00:31]} b6 {[%emt 0:09:43]} 16. b4 {[%emt 0:00:53]} Rfc8 {[%emt 0:14:28]} 17. Rfb1 {[%emt 0:03:02]} Rab8 {[%emt 0:03:30]} 18. h3 {[%emt 0:09:15]} h6 {[%emt 0:02:58]} 19. Rb2 {[%emt 0:02:18]} Be8 {[%emt 0:06:55]} 20. Qe3 {[%emt 0:02:45]} Qc7 {[%emt 0:02:26]} 21. Rab1 {[%emt 0:06:02]} Bd7 {[%emt 0:00:25]} 22. Kh2 {[%emt 0:03:51]} Nh7 {[%emt 0:00:34]} 23. Rf1 {[%emt 0:01:53]} Rf8 {[%emt 0:02:28]} 24. Nf3 {[%emt 0:05:47]} Qd8 {[%emt 0:01:49]} 25. bxc5 {[%emt 0:05:26]} bxc5 {[%emt 0:00:12]} 26. Rfb1 {[%emt 0:00:02]} Qc7 {[%emt 0:01:15]} 27. Nh4 {[%emt 0:09:05]} Rxb2 {[%emt 0:01:23]} 28. Rxb2 {[%emt 0:00:02]} Rb8 {[%emt 0:00:12]} 29. Rxb8+ {[%emt 0:00:44]} Qxb8 {[%emt 0:00:03]} 30. Bg4 {[%emt 0:00:04]} Bxg4 {[%emt 0:02:47]} 31. hxg4 {[%emt 0:00:26]} Qd8 {[%emt 0:02:48]} 32. g3 {[%emt 0:02:18]} Nf6 {[%emt 0:00:24]} 33. f3 {[%emt 0:00:58]} Nh7 {[%emt 0:03:00]} 34. Qb3 {[%emt 0:04:16]} g6 {[%emt 0:00:13]} 35. Qb5 {[%emt 0:06:48]} Kg7 {[%emt 0:00:17]} 36. Ng2 {[%emt 0:06:59]} Ng5 {[%emt 0:03:10]} 37. Ne1 {[%emt 0:00:03]} h5 {[%emt 0:00:31]} 38. gxh5 {[%emt 0:00:21]} Qh8 {[%emt 0:00:23]} 39. Qd7 {[%emt 0:03:27]} Qxh5+ {[%emt 0:00:14]} 40. Kg2 {[%emt 0:00:00]} Nxe4 {[%emt 0:00:00]} 41. g4 {[%emt 0:10:13]} Qh4 {[%emt 0:01:49]} 42. fxe4 {[%emt 0:00:04]} Qxe1 {[%emt 0:00:09]} 43. Qxd6 {[%emt 0:00:04]} Qxe4+ {[%emt 0:00:26]} 44. Kg3 {[%emt 0:01:21]} Qe3+ {[%emt 0:03:21]} 45. Kg2 {[%emt 0:00:53]} Qd2+ {[%emt 0:06:04]} 46. Kg3 {[%emt 0:01:30]} Qc3+ {[%emt 0:00:06]} 47. Kg2 {[%emt 0:02:57]} Qb2+ {[%emt 0:00:24]} 48. Kf3 {[%emt 0:00:38]} e4+ {[%emt 0:03:50]} 49. Kg3 {[%emt 0:01:50]} Qxa3+ {[%emt 0:01:24]} 50. Kh4 {[%emt 0:01:28]} Qb2 {[%emt 0:00:19]} 51. Kh3 {[%emt 0:03:08]} Qc3+ {[%emt 0:00:53]} 52. Kg2 {[%emt 0:02:24]} e3 {[%emt 0:01:06]} 53. Qe7 {[%emt 0:00:29]} Qd2+ {[%emt 0:00:15]} 54. Kh3 {[%emt 0:01:24]} e2 {[%emt 0:01:16]} 55. Qe5+ {[%emt 0:00:04]} Kh7 {[%emt 0:00:08]} 0-1

[Event "72nd RUS-ch Higher League 2019"]
[Site "Yaroslavl"]
[Date "2019.07.03"]
[Round "6.8"]
[White "Pridorozhni, Aleksei"]
[Black "Alekseev, Evgeny"]
[Result "1-0"]
[ECO "B44"]
[WhiteElo "2588"]
[BlackElo "2645"]
[Annotator "ChessBase"]
[PlyCount "87"]
[EventDate "2019.06.27"]
[EventType "swiss"]
[EventCountry "RUS"]
[SourceTitle "playchess.com"]
[Source "ChessBase"]
[SourceQuality "1"]
[TimeControl "40/5400+30:1800+30"]

1. e4 {[%emt 0:01:13]} c5 {[%emt 0:02:42]} 2. Nf3 {[%emt 0:00:09]} e6 {[%emt 0:00:37]} 3. d4 {[%emt 0:00:18]} cxd4 {[%emt 0:01:15]} 4. Nxd4 {[%emt 0:00:08]} Nc6 {[%emt 0:01:06]} 5. g3 {[%emt 0:00:34]} Nf6 {[%emt 0:02:29]} 6. Bg2 {[%emt 0:02:11]} Bc5 {[%emt 0:05:27]} 7. Nb3 {[%emt 0:00:24]} Bb6 {[%emt 0:00:35]} 8. O-O {[%emt 0:05:13]} O-O {[%emt 0:03:04]} 9. c4 {[%emt 0:02:44]} d6 {[%emt 0:02:55]} 10. Qe2 {[%emt 0:28:31]} a5 {[%emt 0:20:04]} 11. a4 {[%emt 0:07:18]} e5 {[%emt 0:05:02]} 12. Nc3 {[%emt 0:04:31]} Bg4 {[%emt 0:06:49]} 13. Bf3 {[%emt 0:01:28]} Be6 {[%emt 0:02:34]} 14. Nd5 {[%emt 0:10:54]} Nd7 {[%emt 0:05:41]} 15. Be3 {[%emt 0:04:13]} Bxe3 {[%emt 0:02:35]} 16. Qxe3 {[%emt 0:00:20]} b6 {[%emt 0:04:03]} 17. Bg2 {[%emt 0:04:05]} Nc5 {[%emt 0:01:33]} 18. f4 {[%emt 0:00:44]} f6 {[%emt 0:02:22]} 19. h4 {[%emt 0:04:34]} Ne7 {[%emt 0:07:48]} 20. Nd2 {[%emt 0:02:46]} Nc6 {[%emt 0:02:55]} 21. Nb3 {[%emt 0:01:35]} Ra7 {[%emt 0:02:11]} 22. Ra3 {[%emt 0:06:33]} Re8 {[%emt 0:04:01]} 23. f5 {[%emt 0:02:58]} Bf7 {[%emt 0:03:32]} 24. g4 {[%emt 0:00:39]} Nb4 {[%emt 0:02:06]} 25. Qd2 {[%emt 0:01:47]} Ncd3 {[%emt 0:04:13]} 26. Nc1 {[%emt 0:01:57]} Bxd5 {[%emt 0:00:55]} 27. cxd5 {[%emt 0:00:07]} Nf4 {[%emt 0:00:20]} 28. Ne2 {[%emt 0:00:15]} Rc7 {[%emt 0:00:27]} 29. Rc3 {[%emt 0:01:30]} Rxc3 {[%emt 0:00:26]} 30. Nxc3 {[%emt 0:01:00]} g6 {[%emt 0:02:06]} 31. Rf3 {[%emt 0:01:12]} gxf5 {[%emt 0:02:48]} 32. exf5 {[%emt 0:00:23]} h5 {[%emt 0:00:27]} 33. Rg3 {[%emt 0:01:18]} hxg4 {[%emt 0:00:47]} 34. Ne2 {[%emt 0:00:14]} Nbd3 {[%emt 0:00:32]} 35. Rxd3 {[%emt 0:00:25]} Nxd3 {[%emt 0:00:03]} 36. Qxd3 {[%emt 0:00:05]} Qc7 {[%emt 0:00:08]} 37. Nc3 {[%emt 0:01:00]} Kf7 {[%emt 0:00:26]} 38. Kh2 {[%emt 0:00:27]} Rh8 {[%emt 0:00:47]} 39. Qg3 {[%emt 0:00:39]} Rg8 {[%emt 0:00:13]} 40. Ne4 {[%emt 0:00:00]} Ke7 {[%emt 0:00:00]} 41. Qc3 {[%emt 0:14:11]} Qd7 {[%emt 0:05:33]} 42. Qc6 {[%emt 0:03:34]} Qxf5 {[%emt 0:01:49]} 43. Qxd6+ {[%emt 0:00:19]} Kf7 {[%emt 0:00:05]} 44. Ng3 {[%emt 0:02:43]} 1-0

[Event "72nd RUS-ch Higher League 2019"]
[Site "Yaroslavl"]
[Date "2019.07.03"]
[Round "6.12"]
[White "Belozerov, Andrei"]
[Black "Rakhmanov, Aleksandr"]
[Result "0-1"]
[ECO "B24"]
[WhiteElo "2533"]
[BlackElo "2615"]
[Annotator "ChessBase"]
[PlyCount "66"]
[EventDate "2019.06.27"]
[EventType "swiss"]
[EventCountry "RUS"]
[SourceTitle "playchess.com"]
[Source "ChessBase"]
[SourceQuality "1"]
[TimeControl "40/5400+30:1800+30"]

1. e4 {[%emt 0:00:00]} c5 {[%emt 0:00:04]} 2. Nc3 {[%emt 0:00:07]} Nc6 {[%emt 0:00:15]} 3. Nf3 {[%emt 0:00:18]} Nf6 {[%emt 0:00:06]} 4. d4 {[%emt 0:04:23]} d5 {[%emt 0:00:13]} 5. exd5 {[%emt 0:04:46]} Nxd5 {[%emt 0:00:18]} 6. Nxd5 {[%emt 0:00:20]} Qxd5 {[%emt 0:00:10]} 7. Be3 {[%emt 0:00:10]} cxd4 {[%emt 0:01:41]} 8. Nxd4 {[%emt 0:00:18]} a6 {[%emt 0:00:54]} 9. Be2 {[%emt 0:05:34]} e5 {[%emt 0:02:03]} 10. Nxc6 {[%emt 0:05:01]} Qxc6 {[%emt 0:00:08]} 11. Qd3 {[%emt 0:03:19]} Qxg2 {[%emt 0:18:30]} 12. O-O-O {[%emt 0:00:59]} Be6 {[%emt 0:01:07]} 13. f4 {[%emt 0:04:21]} Be7 {[%emt 0:13:08]} 14. Rhg1 {[%emt 0:11:38]} Qc6 {[%emt 0:11:00]} 15. f5 {[%emt 0:25:45]} Bxa2 {[%emt 0:18:51]} 16. Bg5 {[%emt 0:01:02]} f6 {[%emt 0:04:18]} 17. Bf3 {[%emt 0:04:33]} Qc7 {[%emt 0:09:55]} 18. Bh5+ {[%emt 0:05:21]} Bf7 {[%emt 0:00:07]} 19. Bxf7+ {[%emt 0:00:28]} Kxf7 {[%emt 0:00:04]} 20. Qb3+ {[%emt 0:00:14]} Kf8 {[%emt 0:03:31]} 21. Be3 {[%emt 0:08:03]} Rc8 {[%emt 0:04:26]} 22. Rd2 {[%emt 0:04:35]} b5 {[%emt 0:00:33]} 23. Bh6 {[%emt 0:04:09]} gxh6 {[%emt 0:02:01]} 24. Qh3 {[%emt 0:01:45]} Qc4 {[%emt 0:00:20]} 25. Rg4 {[%emt 0:02:39]} Qa2 {[%emt 0:01:50]} 26. c3 {[%emt 0:01:57]} b4 {[%emt 0:01:01]} 27. Qxh6+ {[%emt 0:01:09]} Ke8 {[%emt 0:00:04]} 28. Rg7 {[%emt 0:00:26]} Qa1+ {[%emt 0:02:28]} 29. Kc2 {[%emt 0:00:01]} b3+ {[%emt 0:00:20]} 30. Kxb3 {[%emt 0:01:00]} Rb8+ {[%emt 0:00:07]} 31. Kc4 {[%emt 0:00:01]} Qf1+ {[%emt 0:00:37]} 32. Kd5 {[%emt 0:00:58]} Qf3+ {[%emt 0:01:52]} 33. Kc4 {[%emt 0:00:25]} Qe4+ {[%emt 0:00:19] Kd4} 0-1

[Event "72nd RUS-ch Higher League 2019"]
[Site "Yaroslavl"]
[Date "2019.07.03"]
[Round "6.13"]
[White "Bocharov, Ivan"]
[Black "Kokarev, Dmitry"]
[Result "0-1"]
[ECO "E92"]
[WhiteElo "2559"]
[BlackElo "2609"]
[Annotator "ChessBase"]
[PlyCount "92"]
[EventDate "2019.06.27"]
[EventType "swiss"]
[EventCountry "RUS"]
[SourceTitle "playchess.com"]
[Source "ChessBase"]
[SourceQuality "1"]
[TimeControl "40/5400+30:1800+30"]

1. d4 {[%emt 0:01:22]} Nf6 {[%emt 0:00:00]} 2. c4 {[%emt 0:00:04]} g6 {[%emt 0:00:05]} 3. Nc3 {[%emt 0:00:04]} Bg7 {[%emt 0:00:12]} 4. e4 {[%emt 0:00:08]} O-O {[%emt 0:00:18]} 5. Nf3 {[%emt 0:00:07]} d6 {[%emt 0:00:39]} 6. Be2 {[%emt 0:00:12]} e5 {[%emt 0:00:48]} 7. d5 {[%emt 0:00:22]} Na6 {[%emt 0:01:17]} 8. Bg5 {[%emt 0:00:19]} h6 {[%emt 0:00:19]} 9. Bh4 {[%emt 0:00:09]} g5 {[%emt 0:00:22]} 10. Bg3 {[%emt 0:00:21]} Nh5 {[%emt 0:00:15]} 11. h4 {[%emt 0:06:24]} Nxg3 {[%emt 0:00:17]} 12. fxg3 {[%emt 0:00:04]} gxh4 {[%emt 0:00:11]} 13. Nxh4 {[%emt 0:04:25]} Qg5 {[%emt 0:00:56]} 14. g4 {[%emt 0:01:36]} Bf6 {[%emt 0:00:08]} 15. Qd2 {[%emt 0:04:32]} Kg7 {[%emt 0:08:07]} 16. Bf3 {[%emt 0:04:44]} Qxd2+ {[%emt 0:03:30]} 17. Kxd2 {[%emt 0:00:01]} Bg5+ {[%emt 0:00:14]} 18. Ke2 {[%emt 0:07:48]} Nb4 {[%emt 0:01:43]} 19. Rad1 {[%emt 0:05:06]} a5 {[%emt 0:05:57]} 20. Nb5 {[%emt 0:04:34]} Na6 {[%emt 0:03:52]} 21. Rd3 {[%emt 0:04:53]} Bd7 {[%emt 0:01:46]} 22. Nf5+ {[%emt 0:01:23]} Bxf5 {[%emt 0:04:54]} 23. gxf5 {[%emt 0:00:05]} Rfd8 {[%emt 0:00:47]} 24. Rdd1 {[%emt 0:10:19]} Kf6 {[%emt 0:03:33]} 25. Bg4 {[%emt 0:07:25]} Nc5 {[%emt 0:05:19]} 26. Kf3 {[%emt 0:01:04]} Rd7 {[%emt 0:01:36]} 27. g3 {[%emt 0:00:43]} c6 {[%emt 0:12:28]} 28. Nc3 {[%emt 0:03:06]} a4 {[%emt 0:06:12]} 29. Ne2 {[%emt 0:02:53]} Rdd8 {[%emt 0:05:28]} 30. Rh2 {[%emt 0:04:09]} a3 {[%emt 0:04:46]} 31. b3 {[%emt 0:01:17]} cxd5 {[%emt 0:00:24]} 32. cxd5 {[%emt 0:01:37]} Rdc8 {[%emt 0:01:05]} 33. Nc3 {[%emt 0:05:34]} Nxb3 {[%emt 0:02:33]} 34. Nb5 {[%emt 0:00:00]} Nc1 {[%emt 0:05:37]} 35. Bh3 {[%emt 0:05:53]} Ra6 {[%emt 0:03:17]} 36. Bf1 {[%emt 0:00:42]} Rc5 {[%emt 0:00:31]} 37. Kg4 {[%emt 0:01:03]} Ke7 {[%emt 0:03:05]} 38. f6+ Kxf6 {[%emt 0:01:54]} 39. Rf2+ {[%emt 0:06:03]} Kg6 {[%emt 0:01:51]} 40. Rf3 {[%emt 0:00:00]} Rb6 {[%emt 0:00:00]} 41. Nxa3 {[%emt 0:02:26]} Rb4 {[%emt 0:04:27]} 42. Kh3 {[%emt 0:01:06]} Nxa2 {[%emt 0:01:15]} 43. Ra1 {[%emt 0:01:46]} Rc3 {[%emt 0:06:01]} 44. Rxc3 {[%emt 0:04:56]} Nxc3 {[%emt 0:00:14]} 45. Nc4 {[%emt 0:00:11]} Nxe4 {[%emt 0:01:32]} 46. Bd3 {[%emt 0:01:50]} Kg7 {[%emt 0:02:04]} 0-1

[Event "72nd RUS-ch Higher League 2019"]
[Site "Yaroslavl"]
[Date "2019.07.03"]
[Round "6.15"]
[White "Romanov, Evgeny"]
[Black "Shimanov, Aleksandr"]
[Result "1-0"]
[ECO "D03"]
[WhiteElo "2577"]
[BlackElo "2615"]
[Annotator "ChessBase"]
[PlyCount "53"]
[EventDate "2019.06.27"]
[EventType "swiss"]
[EventCountry "RUS"]
[SourceTitle "playchess.com"]
[Source "ChessBase"]
[SourceQuality "1"]
[TimeControl "40/5400+30:1800+30"]

1. d4 {[%emt 0:02:05]} Nf6 {[%emt 0:04:13]} 2. Nf3 {[%emt 0:00:10]} d5 {[%emt 0:00:51]} 3. Bg5 {[%emt 0:00:13]} e6 {[%emt 0:02:40]} 4. e3 {[%emt 0:00:15]} Be7 {[%emt 0:00:28]} 5. Bd3 {[%emt 0:01:40]} Nbd7 {[%emt 0:01:47]} 6. Nbd2 {[%emt 0:00:29]} c5 {[%emt 0:01:59]} 7. c3 {[%emt 0:00:24]} b6 {[%emt 0:00:16]} 8. O-O {[%emt 0:00:48]} Bb7 {[%emt 0:03:57]} 9. a4 {[%emt 0:00:51]} a6 {[%emt 0:01:46]} 10. Qb1 {[%emt 0:01:54]} Rc8 {[%emt 0:12:01]} 11. b4 {[%emt 0:05:36]} cxb4 {[%emt 0:02:06]} 12. cxb4 {[%emt 0:00:17]} Rc3 {[%emt 0:02:15]} 13. b5 {[%emt 0:02:34]} a5 {[%emt 0:03:12]} 14. Rc1 {[%emt 0:04:08]} Rxc1+ {[%emt 0:02:01]} 15. Qxc1 {[%emt 0:00:02]} Qb8 {[%emt 0:04:00]} 16. Ne5 {[%emt 0:23:52]} Nxe5 {[%emt 0:09:13]} 17. dxe5 {[%emt 0:00:06]} Ng4 {[%emt 0:02:42]} 18. Bxe7 {[%emt 0:01:21]} Kxe7 {[%emt 0:01:42]} 19. f4 {[%emt 0:05:05]} Rc8 {[%emt 0:08:29]} 20. Qe1 {[%emt 0:21:27]} Qc7 {[%emt 0:07:32]} 21. Qh4+ {[%emt 0:05:07]} Kf8 {[%emt 0:04:57]} 22. Nb3 {[%emt 0:02:40]} Nxe3 {[%emt 0:02:20]} 23. Bxh7 {[%emt 0:08:19]} d4 {[%emt 0:05:39]} 24. Rc1 {[%emt 0:01:45]} Qd7 {[%emt 0:05:20]} 25. Rxc8+ {[%emt 0:00:23]} Qxc8 {[%emt 0:00:04]} 26. Be4 {[%emt 0:00:14]} Qc7 {[%emt 0:01:03]} 27. Bxb7 {[%emt 0:01:22]} 1-0

[Event "72nd RUS-ch Higher League 2019"]
[Site "Yaroslavl"]
[Date "2019.07.03"]
[Round "6.16"]
[White "Petrov, Nikita"]
[Black "Murzin, Volodar"]
[Result "1/2-1/2"]
[ECO "D10"]
[WhiteElo "2610"]
[BlackElo "2418"]
[Annotator "ChessBase"]
[PlyCount "83"]
[EventDate "2019.06.27"]
[EventType "swiss"]
[EventCountry "RUS"]
[SourceTitle "playchess.com"]
[Source "ChessBase"]
[SourceQuality "1"]
[TimeControl "40/5400+30:1800+30"]

1. c4 {[%emt 0:00:00]} c6 {[%emt 0:00:00]} 2. d4 {[%emt 0:00:00]} d5 {[%emt 0:00:00]} 3. cxd5 {[%emt 0:00:05]} cxd5 {[%emt 0:00:00]} 4. Bg5 {[%emt 0:00:06]} Nc6 {[%emt 0:11:36]} 5. Nc3 {[%emt 0:00:08]} Qb6 {[%emt 0:04:00]} 6. Qd2 {[%emt 0:17:31]} e6 {[%emt 0:04:25]} 7. e3 {[%emt 0:03:35]} Be7 {[%emt 0:01:57]} 8. Nf3 {[%emt 0:02:40]} Bxg5 {[%emt 0:08:31]} 9. Nxg5 {[%emt 0:00:07]} f6 {[%emt 0:03:18]} 10. Nf3 {[%emt 0:02:11]} Nge7 {[%emt 0:01:01]} 11. Be2 {[%emt 0:03:25]} O-O {[%emt 0:01:20]} 12. O-O {[%emt 0:00:54]} Qd8 {[%emt 0:10:23]} 13. a3 {[%emt 0:07:29]} Bd7 {[%emt 0:00:55]} 14. b4 {[%emt 0:00:23]} Be8 {[%emt 0:01:02]} 15. Rac1 {[%emt 0:06:30]} Qd6 {[%emt 0:05:00]} 16. Ne1 {[%emt 0:10:45]} Bf7 {[%emt 0:09:37]} 17. Nd3 {[%emt 0:02:43]} b6 {[%emt 0:07:26]} 18. Rfd1 {[%emt 0:03:45]} Rad8 {[%emt 0:01:01]} 19. Nf4 {[%emt 0:02:53]} g5 {[%emt 0:03:07]} 20. Nd3 {[%emt 0:01:38]} Bg6 {[%emt 0:00:38]} 21. Ne1 {[%emt 0:05:14]} Kg7 {[%emt 0:01:16]} 22. Bd3 {[%emt 0:01:07]} Rh8 {[%emt 0:00:58]} 23. Rc2 {[%emt 0:01:24]} e5 {[%emt 0:03:55]} 24. Rdc1 {[%emt 0:05:05]} exd4 {[%emt 0:02:29]} 25. Nb5 {[%emt 0:05:25]} dxe3 {[%emt 0:02:05]} 26. Qxe3 {[%emt 0:02:56]} Qd7 {[%emt 0:01:14]} 27. Nd4 {[%emt 0:10:19]} Rc8 {[%emt 0:02:14]} 28. Nef3 {[%emt 0:00:19]} Bxd3 {[%emt 0:02:29]} 29. Qxd3 {[%emt 0:00:15]} Nxd4 {[%emt 0:00:06]} 30. Nxd4 {[%emt 0:01:33]} Rxc2 {[%emt 0:00:08]} 31. Rxc2 {[%emt 0:00:05]} Rc8 {[%emt 0:00:07]} 32. g3 {[%emt 0:01:30]} Rxc2 {[%emt 0:00:54]} 33. Qxc2 {[%emt 0:00:04]} Qd6 {[%emt 0:05:25]} 34. Qa4 {[%emt 0:00:45]} Qe5 {[%emt 0:01:40]} 35. Qxa7 {[%emt 0:00:30]} Qe1+ {[%emt 0:01:47]} 36. Kg2 {[%emt 0:00:03]} Qe4+ {[%emt 0:00:10]} 37. f3 {[%emt 0:01:10]} Qxd4 {[%emt 0:00:02]} 38. Qxe7+ {[%emt 0:00:05]} Kg6 {[%emt 0:00:18]} 39. Qe8+ {[%emt 0:00:14]} Kg7 {[%emt 0:00:05]} 40. Qe7+ {[%emt 0:00:00]} Kg6 {[%emt 0:00:00]} 41. Qe8+ {[%emt 0:06:46]} Kg7 {[%emt 0:00:14]} 42. Qe7+ {[%emt 0:00:36]} 1/2-1/2

[Event "72nd RUS-ch Higher League 2019"]
[Site "Yaroslavl"]
[Date "2019.07.03"]
[Round "6.17"]
[White "Kobalia, Mikhail"]
[Black "Yanchenko, Roman"]
[Result "1-0"]
[ECO "B14"]
[WhiteElo "2608"]
[BlackElo "2478"]
[Annotator "ChessBase"]
[PlyCount "49"]
[EventDate "2019.06.27"]
[EventType "swiss"]
[EventCountry "RUS"]
[SourceTitle "playchess.com"]
[Source "ChessBase"]
[SourceQuality "1"]
[TimeControl "40/5400+30:1800+30"]

1. c4 {[%emt 0:00:00]} c6 {[%emt 0:00:23]} 2. e4 {[%emt 0:00:47]} d5 {[%emt 0:00:42]} 3. exd5 {[%emt 0:00:05]} cxd5 {[%emt 0:00:02]} 4. d4 {[%emt 0:00:07]} Nf6 {[%emt 0:02:09]} 5. Nc3 {[%emt 0:00:26]} g6 {[%emt 0:05:55]} 6. Qb3 {[%emt 0:01:49]} Bg7 {[%emt 0:00:41]} 7. cxd5 {[%emt 0:00:05]} O-O {[%emt 0:00:19]} 8. Nge2 {[%emt 0:02:42]} Na6 {[%emt 0:04:57]} 9. Nf4 {[%emt 0:05:31]} Nc7 {[%emt 0:00:53]} 10. Be2 {[%emt 0:04:30]} b6 {[%emt 0:18:54]} 11. Bf3 {[%emt 0:05:17]} Rb8 {[%emt 0:01:30]} 12. O-O {[%emt 0:03:21]} Bg4 {[%emt 0:00:44]} 13. Bxg4 {[%emt 0:08:29]} Nxg4 {[%emt 0:00:05]} 14. Nd3 {[%emt 0:02:19]} Bxd4 {[%emt 0:03:51]} 15. Bf4 {[%emt 0:03:11]} Rb7 {[%emt 0:07:28]} 16. h3 {[%emt 0:03:57]} e5 {[%emt 0:00:46]} 17. dxe6 {[%emt 0:01:06]} Bxc3 {[%emt 0:00:11]} 18. exf7+ {[%emt 0:02:04]} Rxf7 {[%emt 0:00:08]} 19. Rad1 {[%emt 0:01:07]} Bd4 {[%emt 0:01:59]} 20. hxg4 {[%emt 0:00:58]} Qf6 {[%emt 0:08:46]} 21. Rfe1 {[%emt 0:03:41]} b5 {[%emt 0:12:22]} 22. Re4 {[%emt 0:04:52]} Na6 {[%emt 0:06:01]} 23. Re6 {[%emt 0:02:15]} Bxf2+ {[%emt 0:01:31]} 24. Kxf2 {[%emt 0:00:40]} Qh4+ {[%emt 0:01:39]} 25. Kg1 {[%emt 0:00:22]} 1-0

[Event "72nd RUS-ch Higher League 2019"]
[Site "Yaroslavl"]
[Date "2019.07.03"]
[Round "6.18"]
[White "Lomasov, Semyon"]
[Black "Timofeev, Artyom"]
[Result "1/2-1/2"]
[ECO "C49"]
[WhiteElo "2542"]
[BlackElo "2608"]
[Annotator "ChessBase"]
[PlyCount "39"]
[EventDate "2019.06.27"]
[EventType "swiss"]
[EventCountry "RUS"]
[SourceTitle "playchess.com"]
[Source "ChessBase"]
[SourceQuality "1"]
[TimeControl "40/5400+30:1800+30"]

1. e4 {[%emt 0:00:00]} e5 {[%emt 0:00:00]} 2. Nf3 {[%emt 0:00:00]} Nf6 {[%emt 0:00:00]} 3. Nc3 {[%emt 0:00:00]} Nc6 {[%emt 0:00:13]} 4. Bb5 {[%emt 0:00:00]} Bb4 {[%emt 0:02:38]} 5. O-O {[%emt 0:00:30]} O-O {[%emt 0:00:38]} 6. d3 {[%emt 0:00:27]} Bxc3 {[%emt 0:01:18]} 7. bxc3 {[%emt 0:00:06]} d6 {[%emt 0:00:17]} 8. Re1 {[%emt 0:13:02]} h6 {[%emt 0:02:43]} 9. d4 {[%emt 0:01:28]} Bd7 {[%emt 0:00:54]} 10. Rb1 {[%emt 0:02:02]} Re8 {[%emt 0:02:04]} 11. Bxc6 {[%emt 0:11:32]} bxc6 {[%emt 0:00:15]} 12. dxe5 {[%emt 0:00:06]} dxe5 {[%emt 0:00:08]} 13. Ba3 {[%emt 0:01:56]} Qc8 {[%emt 0:03:26]} 14. Qd3 {[%emt 0:04:30]} Be6 {[%emt 0:05:16]} 15. c4 {[%emt 0:15:17]} Nd7 {[%emt 0:00:31]} 16. Rb2 {[%emt 0:03:11]} Rd8 {[%emt 0:02:34]} 17. Be7 {[%emt 0:01:06]} Re8 {[%emt 0:00:07]} 18. Ba3 {[%emt 0:00:15]} Rd8 {[%emt 0:00:09]} 19. Be7 {[%emt 0:10:06]} Re8 {[%emt 0:00:06]} 20. Ba3 1/2-1/2

[Event "72nd RUS-ch Higher League 2019"]
[Site "Yaroslavl"]
[Date "2019.07.03"]
[Round "6.19"]
[White "Triapishko, Alexandr"]
[Black "Truskavetsky, Alexandr"]
[Result "1-0"]
[ECO "B12"]
[WhiteElo "2512"]
[BlackElo "2398"]
[Annotator "ChessBase"]
[PlyCount "81"]
[EventDate "2019.06.27"]
[EventType "swiss"]
[EventCountry "RUS"]
[SourceTitle "playchess.com"]
[Source "ChessBase"]
[SourceQuality "1"]
[TimeControl "40/5400+30:1800+30"]

1. e4 {[%emt 0:00:20]} c6 {[%emt 0:00:55]} 2. d4 {[%emt 0:00:30]} d5 {[%emt 0:00:07]} 3. e5 {[%emt 0:00:18]} Bf5 {[%emt 0:00:20]} 4. Nd2 {[%emt 0:03:05]} e6 {[%emt 0:01:34]} 5. Nb3 {[%emt 0:00:07]} Nd7 {[%emt 0:00:37]} 6. Nf3 {[%emt 0:02:18]} h6 {[%emt 0:00:14]} 7. Be2 {[%emt 0:11:18]} Ne7 {[%emt 0:00:25]} 8. O-O {[%emt 0:00:28]} g5 {[%emt 0:00:28]} 9. Ne1 {[%emt 0:08:13]} Rg8 {[%emt 0:11:03]} 10. Bh5 {[%emt 0:15:43]} c5 {[%emt 0:15:14]} 11. c3 {[%emt 0:12:46]} c4 {[%emt 0:03:55]} 12. Nd2 {[%emt 0:02:00]} g4 {[%emt 0:00:32]} 13. g3 {[%emt 0:06:01]} Rg5 {[%emt 0:08:10]} 14. Nxc4 {[%emt 0:10:24]} dxc4 {[%emt 0:12:59]} 15. Bxg5 {[%emt 0:00:12]} hxg5 {[%emt 0:00:02]} 16. Ng2 {[%emt 0:00:36]} Nd5 {[%emt 0:13:33]} 17. Ne3 {[%emt 0:03:29]} Nxe3 {[%emt 0:03:16]} 18. fxe3 {[%emt 0:00:26]} Qb6 {[%emt 0:10:28]} 19. e4 {[%emt 0:11:09]} Bg6 {[%emt 0:05:01]} 20. Bxg6 {[%emt 0:00:09]} fxg6 {[%emt 0:00:07]} 21. Qa4 {[%emt 0:00:56]} Qc6 {[%emt 0:03:51]} 22. Qxc6 {[%emt 0:00:24]} bxc6 {[%emt 0:00:01]} 23. b3 {[%emt 0:00:06]} cxb3 {[%emt 0:03:47]} 24. axb3 {[%emt 0:00:05]} a5 {[%emt 0:00:24]} 25. b4 {[%emt 0:02:41]} a4 {[%emt 0:00:41]} 26. Kf2 {[%emt 0:00:12]} Be7 {[%emt 0:01:38]} 27. Ke2 {[%emt 0:00:35]} Nb6 {[%emt 0:00:18]} 28. Ra2 {[%emt 0:01:10]} Rd8 {[%emt 0:00:14]} 29. Kd3 {[%emt 0:02:04]} Rd7 {[%emt 0:01:09]} 30. Raf2 {[%emt 0:00:47]} Ra7 {[%emt 0:01:06]} 31. Rf7 {[%emt 0:03:01]} a3 {[%emt 0:00:50]} 32. R7f2 {[%emt 0:00:14]} a2 {[%emt 0:02:04]} 33. Ra1 {[%emt 0:00:06]} Bxb4 {[%emt 0:00:40]} 34. cxb4 {[%emt 0:02:24]} Ra3+ {[%emt 0:00:07]} 35. Kc2 {[%emt 0:00:11]} Nc4 {[%emt 0:00:58]} 36. Kc1 {[%emt 0:00:19]} Rd3 {[%emt 0:00:37]} 37. Raxa2 {[%emt 0:01:17]} Rxd4 {[%emt 0:00:26]} 38. Ra8+ {[%emt 0:00:35]} Ke7 {[%emt 0:00:34]} 39. Ra7+ {[%emt 0:00:13]} Rd7 {[%emt 0:00:31]} 40. Rxd7+ {[%emt 0:00:00]} Kxd7 {[%emt 0:00:00]} 41. Rf7+ {[%emt 0:02:30]} 1-0